Workbook

Sheet Input og resultat
A1: FVF BC
A2: Kalkulationsrente | C2: 0.035
A3: T_fj_frem | B3: C | C3: 75
A4: T_fj_retur | B4: C | C4: 40
A5: Fjernvarme produktion | B5: MW | C5: ='BC TBV'!C6 -> 23.88483482
A6: VP COP | C6: ='BC TBV'!C7 -> 4.889589041
A7: Fjernvarme produktion | B7: MWh/år | C7: ='BC TBV'!D10 -> 112969.7358
A8: Fuldlaststimer | B8: timer | C8: ='BC TBV'!D8 -> 4729.76835
A9: Variabel | B9: kr/MWh varme | C9: ='BC TBV'!D19 -> 123.2806634
A10: LCE ref | C10: =-0.0019*C9*C9+1.13*C9+181.55 -> 291.9807179 | D10: =C10-C13 -> -9.999999975e-07
A11: Investering ekls. Betaling | B11: mio.kr | C11: =Investering!C20/1000 -> 119.4682482
A12: Betaling | B12: mio. kr | C12: =C24 -> 125.8110885 | D12: 113
A13: LCE | B13: kr/MWh varme | C13: ='BC TBV'!E25 -> 291.9807189
A15: Varmekilde leverandør
A16: Bindingsperiode | B16: år | C16: 15 | D16: min 5 | E16: max 25
A17: Geo effekt | B17: MW | C17: 19 | D17: min 5 | E17: max 50
A18: T_geo,frem | B18: C | C18: 27 | D18: min 10 | E18: max 40
A19: T_geo,retur | B19: C | C19: 15 | D19: min 5C og min 5C lavere end T_geo,frem
A20: Total afstand | B20: m | C20: 100 | D20: min 100 | E20: max 20000
A21: Overskudsvarme produktion | B21: MWh | C21: ='BC TBV'!D9 -> 89865.59866
A22: Masseflow geo | B22: kg/s | C22: =1000*C17/((C18-C19)*4.18) -> 378.7878788
A23: Volumen flow geo | B23: m3/h | C23: =C22/1000*3600 -> 1363.636364
A24: Indtægt | B24: mio. kr | C24: 125.8110885 | D24: 125.8110871
B26: Start | C26: Slut | D26: Peak dato
A27: Årlige leveringsperiode | B27: =D27-(C8/24/2)-15 -> 2019-10-10T11:06:56.969 | C27: =D27+(C8/24/2)+15 -> 2020-05-24T12:53:03.031 | D27: 2020-02-01
B28: 2019-10-31T19:16:02.740 | C28: 2020-05-03T04:43:57.260
A29: Rød tekst: leveringsbetingelse for varmekilde leverandør
A30: Grøntekst: leveringsbetingelse for FVF

Sheet Timer og LCE
A2: 1. 100-120 kr/MWh
A3: Varme effekt | B3: Timer | C3: LCE | D3: =-3.291*Teknik!$C$13+5130.8 -> 5052.195009
A4: 10 | B4: 5092.8922 | C4: 268
A5: 20 | B5: 5067.23035 | C5: 269
A6: 30 | B6: 5037.221867 | C6: 270
A7: 40 | B7: 5001.6732 | C7: 271
A8: 50 | B8: 4961.12208 | C8: 272
A10: 2. 120-160 kr/MWh
A11: Varme effekt | B11: Timer | C11: LCE | D11: =-6.6121*Teknik!$C$13+4743.8 -> 4585.871084
A12: 10 | B12: 4676.3618 | C12: 301
A13: 20 | B13: 4613.55665 | C13: 303
A14: 30 | B14: 4545.499967 | C14: 306
A15: 40 | B15: 4478.474525 | C15: 308
A16: 50 | B16: 4413.2975 | C16: 310
A18: 3. 160-200 kr/MWh
A19: Varme effekt | B19: Timer | C19: LCE | D19: =-7.665*Teknik!$C$13+3920.1 -> 3737.022741
A20: 10 | B20: 3840.5865 | C20: 364
A21: 20 | B21: 3767.6868 | C21: 367
A22: 30 | B22: 3693.922667 | C22: 371
A23: 40 | B23: 3615.039925 | C23: 375
A24: 50 | B24: 3533.66076 | C24: 379
A26: 4. 200-260 kr/MWh
A27: Varme effekt | B27: Timer | C27: LCE | D27: =-8.5779*Teknik!$C$13+3129.1 -> 2924.218275
A28: 10 | B28: 3042.7778 | C28: 425
A29: 20 | B29: 2957.72275 | C29: 430
A30: 30 | B30: 2872.222667 | C30: 436
A31: 40 | B31: 2786.840225 | C31: 443
A32: 50 | B32: 2699.3221 | C32: 450
A34: 110 | B34: =AVERAGE(B4:B8) -> 5032.027939 | C34: 280 | D34: 270
A35: 130 | B35: =AVERAGE(B12:B16) -> 4545.438088 | C35: 300 | D35: 305.6
A36: 180 | B36: =AVERAGE(B20:B24) -> 3690.17933 | C36: 320 | D36: 371.2
A37: 230 | B37: =AVERAGE(B28:B32) -> 2871.777108 | C37: 340 | D37: 436.8

Sheet BC TBV
A1: Bindingsperiode | B1: år | C1: ='Input og resultat'!C16 -> 15
A2: Kalkulationsrente | C2: ='Input og resultat'!C2 -> 0.035
D3: pr år | E3: NPV
A4: Teknik
A5: Geo effekt | B5: MW | C5: ='Input og resultat'!C17 -> 19
A6: VP effekt | B6: MW | C6: =Teknik!C13 -> 23.88483482
A7: COP VP | C7: =Teknik!C11 -> 4.889589041
A8: Fuldlaststimer | B8: timer | D8: =(0.029*D19*D19-27.552*D19+7684.5)+(24-C6)*10 -> 4729.76835 | H8: Kontrol NPV
A9: Geo varme | B9: MWh | D9: =D8*C5 -> 89865.59866 | E9: =D9*((1+$C$2)^$C$1-1)/($C$2*(1+$C$2)^$C$1) -> 1035019.025 | H9: =$C$1*D9 -> 1347983.98
A10: VP varme | B10: MWh | D10: =D8*C6 -> 112969.7358 | E10: =D10*((1+$C$2)^$C$1-1)/($C$2*(1+$C$2)^$C$1) -> 1301118.866 | H10: =$C$1*D10 -> 1694546.037
A11: Elforbrug | B11: MWh | D11: =D10/C7 -> 23104.13715 | E11: 266099.841 | H11: =$C$1*D11 -> 346562.0572
A12: Omkostning
A13: Geo varme sats | B13: kr/MWh
A14: Geo varme betaling | B14: kr | D14: =D9*C13/10^3 -> 0 | E14: 0
A15: Elpris | B15: kr/MWh el | C15: =Elpris!C5 -> 505
A16: El omkostning per varme | B16: kr/MWh varme | C16: =C15/C7 -> 103.2806634
A17: El omkostning | D17: =C15*D11/1000 -> 11667.58926 | E17: =D17*((1+$C$2)^$C$1-1)/($C$2*(1+$C$2)^$C$1) -> 134380.4197
A18: Variable D&V | B18: kr/MWh varme | D18: 20 | E18: =D18*((1+$C$2)^$C$1-1)/($C$2*(1+$C$2)^$C$1) -> 230.3482179
A19: Variable varmepris | B19: kr/MWh varme | D19: =C13+C16+D18 -> 123.2806634
A20: Faste D&V | B20: t. kr/år | D20: 1 | E20: =D20*((1+$C$2)^$C$1-1)/($C$2*(1+$C$2)^$C$1) -> 11.5174109
A21: Investering | E21: =Investering!C20 -> 119468.2482
A22: Engangsbeløb | B22: t. kr | E22: ='Input og resultat'!C24*1000 -> 125811.0885
A23: Total omkostning | B23: t. kr | D23: =SUM(D13:D16) -> 0 | E23: =SUM(E15:E22) -> 379901.6219 | H23: =$C$1*D23 -> 0
A25: LCE | B25: kr/MWh | E25: =1000*E23/E10 -> 291.9807189
A26: LCE ref | B26: kr/MWh | E26: =-0.001*D19*D19+0.565*D19+220.8 -> 275.2554529
E27: =E25-E26 -> 16.72526606
E28: =-0.0015*D19*D19+1.8814*D19+83.212 -> 292.3550572

Sheet BC

Sheet Elpris
A1: Lokal tarif | B1: kr/MWh el | C1: 20
A2: Transmissionstarif | B2: kr/MWh el | C2: 80
A3: Elspot | B3: kr/MWh el | C3: 250
A4: Elvarmeafgift | B4: kr/MWh el | C4: 155
A5: Elpris | B5: kr/MWh el | C5: =SUM(C1:C4) -> 505

Sheet Investering
A2: COP varme | C2: =Teknik!C11 -> 4.889589041 | G2: Ref | H2: Projekt | I2: Afvigelse | J2: Afvigelse for VP, mio.kr | K2: Afvigelse for rest, mio.kr | M2: min | N2: max
A3: Geo effekt | B3: MW | C3: =Teknik!C12 -> 19 | E3: Varme effekt | F3: MW | G3: 23.8 | H3: =C4 -> 23.88483482 | I3: =H3-G3 -> 0.08483482426 | J3: =0.9*I3*G9 -> 192.4823744 | K3: =I3*G10*0.9 -> 187.3495111 | M3: 5 | N3: 50
A4: VP effekt | B4: MW | C4: =Teknik!C13 -> 23.88483482 | E4: T_varmest | F4: C | G4: 75 | H4: ='Input og resultat'!C3 -> 75 | I4: =H4-G4 -> 0 | J4: =I4*0.01*G6 -> 0 | K4: =I4*0.005*G7 -> 0 | M4: 50 | N4: 80
E5: T_koldest | F5: C | G5: 15 | H5: ='Input og resultat'!C19 -> 15 | I5: =H5-G5 -> 0 | J5: =-I5*0.02*G6 -> 0 | K5: =-I5*0.01*G7 -> 0 | M5: 10 | N5: 40
A6: Specifik anlægsinvestering | B6: t. kr/MW | C6: 7000 | E6: VP invest | F6: t.kr | G6: 60000 | H6: =G6+J3+J4+J5 -> 60192.48237
E7: Rest invest | F7: t.kr | G7: =(133000-G6)*0.8 -> 58400 | H7: =G7+K3+K4+K5 -> 58587.34951 | K7: =G7*I7 -> 0
E8: Total anlæg | F8: t.kr | G8: =G6+G7 -> 118400 | H8: =H6+H7 -> 118779.8319
E9: VP specifik | F9: t.kr/MW | G9: =G6/G3 -> 2521.008403 | H9: =H6/H3 -> 2520.112985
E10: Rest specifik | F10: t.kr/MW | G10: =G7/G3 -> 2453.781513 | H10: =H7/H3 -> 2452.909972
E11: Anlæg specifik | F11: t.kr/MW | G11: =G8/G3 -> 4974.789916 | H11: =H8/H3 -> 4973.022956
A13: Længde | B13: m | C13: ='Input og resultat'!C20 -> 100
A14: Geo effekt | B14: MW | C14: ='Input og resultat'!C17 -> 19
A15: Pris per meter | B15: kr/m | C15: =-0.6241*C14*C14+159.17*C14+3459.4 -> 6258.3299
A16: Ledningspris | B16: t.kr | C16: =C13*C15/1000 -> 625.83299
A17: Pumpe og diverse | B17: t.kr | C17: =C16*0.1 -> 62.583299
A18: Total ledning | C18: =SUM(C16:C17) -> 688.416289
A20: Total investering | C20: =C18+H8 -> 119468.2482

Sheet Teknik
C1: Middel metode | E1: Ln metode | L1: Middel metode | N1: Ln metode
A2: T_fj_frem | B2: ='Input og resultat'!C3 -> 75 | C2: =B2+273 -> 348 | J2: T_fj_frem | K2: 75 | L2: =K2+273 -> 348
A3: T_fj_retur | B3: ='Input og resultat'!C4 -> 40 | C3: =B3+273 -> 313 | J3: T_fj_retur | K3: 40 | L3: =K3+273 -> 313
A4: T_fj_mid | B4: =(B2+B3)/2 -> 57.5 | C4: =(C2+C3)/2 -> 330.5 | D4: T_lmH | E4: =(C2-C3)/(LN(C2/C3)) -> 330.1908933 | J4: T_fj_mid | K4: =(K2+K3)/2 -> 57.5 | L4: =(L2+L3)/2 -> 330.5 | M4: T_lmH | N4: =(L2-L3)/(LN(L2/L3)) -> 330.1908933
A5: T_geo_frem | B5: ='Input og resultat'!C18 -> 27 | C5: 300 | J5: T_geo_frem | K5: 27 | L5: 300
A6: T_geo_retur | B6: ='Input og resultat'!C19 -> 15 | C6: 288 | J6: T_geo_retur | K6: 15 | L6: 288
A7: T_geo_mid | B7: =(B5+B6)/2 -> 21 | C7: =(C5+C6)/2 -> 294 | D7: T_lmL | E7: =(C5-C6)/(LN(C5/C6)) -> 293.9591791 | J7: T_geo_mid | K7: =(K5+K6)/2 -> 21 | L7: =(L5+L6)/2 -> 294 | M7: T_lmL | N7: =(L5-L6)/(LN(L5/L6)) -> 293.9591791
A9: eff_VP | C9: 0.54 | E9: =C9 -> 0.54 | J9: eff_VP | L9: 0.55 | N9: =L9 -> 0.55
A10: COP_L | C10: =C4/(C4-C7) -> 9.054794521 | D10: COP_L | E10: =E4/(E4-E7) -> 9.113311392 | J10: COP_L | L10: =L4/(L4-L7) -> 9.054794521 | M10: COP_L | N10: =N4/(N4-N7) -> 9.113311392
A11: Faktisk COP | C11: =C9*C10 -> 4.889589041 | E11: =E9*E10 -> 4.921188152 | L11: =L9*L10 -> 4.980136986 | N11: =N9*N10 -> 5.012321266 | O11: Afvigelse | P11: =(N11-L11)/E11 -> 0.006539940817 | R11: Faktisk COP
A12: Geo effekt | B12: MW | C12: ='Input og resultat'!C17 -> 19 | O12: Konklusion: simplere at bruge middel metode
A13: VP effekt | B13: MW | C13: =C12+C12/(C11-1) -> 23.88483482

Sheet Ledning
A1: Længde | B1: m | C1: 500
A2: Effekt | B2: MW | C2: ='Input og resultat'!C17 -> 19
A3: Pris per meter | B3: kr/m | C3: =-0.6241*C2*C2+159.17*C2+3459.4 -> 6258.3299
A4: Ledningspris | B4: kr | C4: =C1*C3 -> 3129164.95
A5: Pumpe og diverse | B5: kr | C5: =C4*0.1 -> 312916.495
A6: Total ledning | C6: =SUM(C4:C5) -> 3442081.445
